bitfinex-derivatives/quotes_ETHF0:USTF0_20241008
["timestamp","ask_amount","ask_price","bid_price","bid_amount"]
[1728425228211,0.4069,2458.9,2458.8,4.0]
[1728425228513,0.4069,2458.9,2458.8,5.47]
[1728425229015,0.4069,2458.9,2458.8,5.87692]
[1728425229514,0.7201,2459.0,2458.8,5.87692]
[1728425229710,1.127,2459.0,2458.8,5.87692]
[1728425229913,0.4069,2458.9,2458.8,5.87692]
[1728425230114,0.7201,2459.0,2458.8,5.47]
[1728425230412,0.6527,2459.2,2458.8,5.47]
[1728425230611,0.6527,2459.2,2458.9,1.8769]
[1728425230915,0.40689,2459.0,2458.9,3.986]
[1728425231318,0.40689,2459.0,2458.9,3.5791]
[1728425233413,0.40689,2459.0,2458.9,3.986]
[1728425234315,1.01708,2459.4,2458.9,3.5791]
[1728425234517,0.40686,2459.2,2459.1,1.47]
[1728425234725,1.4112,2459.5,2459.1,1.47]
[1728425234726,0.40685,2459.3,2459.1,1.47]
[1728425234913,0.40685,2459.3,2459.2,0.40686]
[1728425235213,1.4112,2459.5,2459.1,1.87686]
[1728425235412,0.40686,2459.2,2459.1,1.87686]
[1728425235815,0.40686,2459.2,2459.1,5.94326]
[1728425236417,0.40686,2459.2,2459.1,4.47326]
[1728425236715,0.40685,2459.3,2459.1,4.47326]
[1728425236915,0.40685,2459.3,2459.1,0.40686]
[1728425237720,2.42824,2459.5,2459.1,0.40686]
[1728425237916,0.40685,2459.3,2459.1,0.40686]
[1728425238812,0.40685,2459.3,2459.0,3.18]
[1728425239012,0.40685,2459.3,2459.1,0.40687]
[1728425239419,0.40685,2459.3,2459.2,0.40686]
[1728425239618,0.40685,2459.3,2459.1,0.40686]
[1728425239821,0.40685,2459.3,2459.0,3.18]
[1728425240023,0.40685,2459.3,2459.2,0.40686]
[1728425240921,0.40685,2459.3,2459.0,3.18]
[1728425241121,0.40685,2459.3,2459.1,0.40686]
[1728425241924,0.40685,2459.3,2459.2,0.40686]
[1728425243334,0.40685,2459.3,2459.0,3.18]
[1728425243635,0.40685,2459.3,2459.2,0.40686]
[1728425243837,0.40685,2459.3,2459.0,6.3878]
[1728425244134,0.40685,2459.3,2459.1,0.40686]
[1728425244334,0.40685,2459.3,2459.0,6.3878]
[1728425244833,0.40686,2459.2,2459.1,0.40686]
[1728425245135,0.40687,2459.1,2459.0,6.79468]
[1728425245727,0.40687,2459.1,2459.0,6.3878]
[1728425246526,0.40687,2459.1,2459.0,6.99864715]
[1728425246835,1.07907,2459.1,2459.0,6.99864715]
[1728425247426,1.07907,2459.1,2459.0,7.40553715]
[1728425248323,1.07907,2459.1,2459.0,7.40578308]
[1728425250038,1.07907,2459.1,2459.0,6.99889308]
[1728425250539,1.07907,2459.1,2459.0,7.40578308]
[1728425251443,1.07907,2459.1,2459.0,4.19811192]
[1728425251632,1.07907,2459.1,2459.0,4.19811233]
[1728425251827,0.665,2459.4,2459.1,0.40686]
[1728425251828,0.40686,2459.2,2459.1,0.40686]
[1728425252043,0.40686,2459.2,2459.1,0.61122233]
[1728425253442,0.40686,2459.2,2459.1,1.01809233]
[1728425255139,0.40686,2459.2,2459.1,0.40687]
[1728425255340,0.40686,2459.2,2459.1,1.01822368]
[1728425255935,0.40686,2459.2,2459.1,0.61136368]
[1728425256643,0.40686,2459.2,2459.1,2.08136368]
[1728425257345,0.40685,2459.3,2459.2,0.40685]
[1728425257534,0.40686,2459.2,2459.1,1.87686]
[1728425257736,0.40686,2459.2,2459.1,2.48823372]
[1728425258734,0.40686,2459.2,2459.1,2.4881856]
[1728425261448,0.40686,2459.2,2459.1,2.0813256]
[1728425261948,0.40686,2459.2,2459.1,0.6113256]
[1728425262143,0.40689,2459.0,2458.9,3.2078]
[1728425262344,0.40689,2459.0,2458.9,4.22613966]
[1728425262647,0.40689,2459.0,2458.9,3.2078]
[1728425262839,1.09679,2459.0,2458.9,3.2078]
[1728425267441,6.63319,2459.0,2458.9,3.2078]
[1728425270938,2.56679,2459.0,2458.9,3.2078]
[1728425271144,6.63319,2459.0,2458.9,3.2078]
[1728425272447,0.40699,2458.4,2458.3,0.094]
[1728425272642,0.40704,2458.1,2458.0,8.80875234]
[1728425272842,2.4875,2458.4,2458.0,13.21580234]
[1728425272843,0.40703,2458.2,2458.0,13.21580234]
[1728425274749,0.40703,2458.2,2458.1,0.61147437]
[1728425274942,0.40703,2458.2,2458.0,13.21580234]
[1728425275357,0.40704,2458.1,2458.0,4.0]
[1728425280762,5.94504,2458.1,2458.0,4.0]
[1728425281758,2.47251,2458.3,2458.2,0.40702]
[1728425281955,1.3593,2458.3,2458.2,1.87702]
[1728425282150,1.7663,2458.3,2458.2,1.47]
[1728425282351,1.7663,2458.3,2458.1,3.95643]
[1728425282855,0.40702,2458.2,2458.1,3.95643]
[1728425283050,0.40702,2458.2,2458.1,2.0794]
[1728425283257,1.3593,2458.3,2458.0,4.0]
[1728425283567,0.40704,2458.1,2458.0,4.0]
[1728425292265,4.47504,2458.1,2458.0,4.0]
[1728425296567,0.40712,2457.6,2457.5,3.2078]
[1728425296766,0.40715,2457.4,2457.3,1.3681]
[1728425297068,0.40715,2457.4,2457.3,5.3681]
[1728425297565,2.48775,2457.8,2457.3,5.3681]
[1728425297766,0.40714,2457.5,2457.4,0.40715]
[1728425298067,0.40715,2457.5,2457.3,7.24526]
[1728425298662,1.47,2457.8,2457.3,7.24526]
[1728425298869,0.40715,2457.4,2457.3,7.24526]
[1728425299469,0.40715,2457.4,2457.3,6.8381]
[1728425299965,0.40715,2457.4,2457.3,5.3681]
[1728425300158,0.40715,2457.4,2457.3,4.6949]
[1728425302270,4.47675,2457.4,2457.3,4.0]
[1728425302563,5.15425,2457.4,2457.3,4.0]
[1728425302960,1.08465,2457.4,2457.3,4.0]
[1728425303965,1.08465,2457.4,2456.9,0.094]
[1728425303966,1.01796,2457.3,2456.9,0.094]
[1728425304165,0.40727,2456.7,2456.6,0.094]
[1728425304371,0.40731,2456.5,2456.2,2.0396]
[1728425304572,0.40731,2456.5,2456.3,0.40734]
[1728425305072,0.40731,2456.5,2456.4,4.0]
[1728425305268,0.4073,2456.6,2456.4,4.0]
[1728425306270,2.8031,2456.8,2456.4,4.0]
[1728425306471,3.5134,2457.1,2456.6,1.87728]
[1728425306667,0.40725,2456.9,2456.7,1.4165]
[1728425306868,0.40725,2456.9,2456.7,2.53777]
[1728425307465,0.6623,2457.1,2456.7,2.1305]
[1728425307671,0.40722,2457.1,2456.9,0.40723]
[1728425310169,0.40721,2457.1,2456.8,0.40724]
[1728425311068,0.40723,2457.0,2456.7,2.1305]
[1728425311269,0.40723,2457.0,2456.8,0.40725]
[1728425311971,4.88315,2457.3,2456.7,2.1305]
[1728425311972,1.018,2457.2,2456.7,2.1305]
[1728425312171,0.40725,2456.8,2456.7,2.1305]
[1728425317170,0.40725,2456.8,2456.7,1.4206]
[1728425320578,0.40725,2456.8,2456.5,0.6627]
[1728425320579,0.40728,2456.7,2456.5,1.06999]
[1728425320880,0.40728,2456.7,2456.5,2.45339]
[1728425321383,0.40729,2456.6,2456.5,2.45339]
[1728425322685,0.40729,2456.6,2456.5,2.0461]
[1728425323489,0.4073,2456.5,2456.4,4.0]
[1728425323689,1.734,2456.5,2456.4,4.0]
[1728425326591,0.40737,2456.1,2455.9,3.6152]
[1728425326793,3.18,2456.3,2455.8,1.3644]
[1728425327083,0.4074,2455.9,2455.8,1.3644]
[1728425327685,0.4074,2455.9,2455.8,1.07342]
[1728425328083,0.4074,2455.9,2455.8,1.07341]
[1728425328282,0.40738,2456.1,2455.8,0.666]
[1728425328498,0.40738,2456.1,2456.0,0.40739]
[1728425328788,5.57686,2456.3,2455.8,1.3792]
[1728425329481,0.4074,2456.0,2455.8,1.3792]
[1728425329678,0.4074,2455.9,2455.8,1.78661]
[1728425331491,0.40742,2455.8,2455.7,1.12283]
[1728425331884,1.47,2455.9,2455.6,3.2078]
[1728425332085,0.40743,2455.7,2455.6,0.40745]
[1728425332486,1.4155,2455.8,2455.4,1.3966]
[1728425332685,0.40746,2455.6,2455.5,0.40746]
[1728425333085,0.40746,2455.6,2455.3,0.6661]
[1728425333086,0.4075,2455.4,2455.3,0.4075]
[1728425333292,0.4075,2455.4,2455.3,4.0]
[1728425333489,1.8775,2455.4,2455.3,4.0]
[1728425334492,0.4075,2455.3,2455.2,3.2078]
[1728425334891,0.4075,2455.3,2455.2,7.2078]
[1728425335097,1.8034,2455.3,2455.2,7.2078]
[1728425336588,1.8034,2455.3,2455.2,4.0]
[1728425337997,1.8034,2455.3,2455.2,4.40752]
[1728425338196,1.8034,2455.3,2455.2,4.0]
[1728425340001,5.8762,2455.3,2455.2,4.0]
[1728425342004,1.8034,2455.3,2455.2,4.0]
[1728425342201,3.9302,2455.7,2455.2,5.47]
[1728425342397,3.9302,2455.7,2455.4,1.47]
[1728425342900,0.40745,2455.6,2455.4,1.87747]
[1728425343297,0.40746,2455.6,2455.4,1.87747]
[1728425344302,0.40746,2455.6,2455.5,0.40747]
[1728425344607,4.33765,2455.7,2455.5,0.40747]
[1728425344801,4.267,2456.3,2455.6,5.542]
[1728425345104,1.73674,2456.3,2456.1,1.87737]
[1728425345303,1.3294,2456.3,2456.1,1.87737]
[1728425345499,1.3294,2456.3,2456.2,4.0]
[1728425346404,1.73674,2456.3,2456.2,4.0]
[1728425346706,0.40733,2456.4,2456.2,4.0]
[1728425346904,0.40733,2456.4,2456.1,0.40736]
[1728425347105,2.0762,2456.6,2456.1,0.40736]
[1728425347301,0.40734,2456.3,2456.1,4.0]
[1728425347602,0.40734,2456.3,2456.1,4.40736]
[1728425347911,0.40734,2456.3,2456.1,4.40737]
[1728425348102,0.40734,2456.3,2456.1,4.0]
[1728425348307,0.40734,2456.3,2456.1,0.40737]
[1728425350005,3.09444,2456.6,2456.0,4.0]
[1728425350211,0.40733,2456.4,2456.1,0.40737]
[1728425350401,3.09444,2456.6,2456.1,0.40737]
[1728425350402,0.40734,2456.3,2456.1,0.40737]
[1728425350802,0.40734,2456.3,2456.2,0.40735]
[1728425351009,3.09444,2456.6,2456.2,0.40735]
[1728425351305,0.40733,2456.4,2456.2,0.40735]
[1728425352507,3.09444,2456.6,2456.1,0.40735]
[1728425352808,0.40733,2456.4,2456.1,0.40735]
[1728425353209,0.40733,2456.4,2456.2,0.40735]
[1728425354009,0.40735,2456.3,2455.9,3.8614]
[1728425354314,0.40735,2456.2,2456.0,0.40737]
[1728425354508,1.01826,2456.5,2455.9,3.8614]
[1728425354705,0.40734,2456.3,2456.1,0.40737]
[1728425356412,0.40736,2456.2,2456.1,0.40737]
[1728425357108,4.0712,2456.2,2455.8,3.2078]
[1728425357311,4.0712,2456.2,2455.6,0.50145]
[1728425357312,2.033,2456.1,2455.6,0.50145]
[1728425357516,2.033,2456.1,2455.5,2.1141]
[1728425357727,2.033,2456.1,2455.5,3.13276]
[1728425358014,2.44038,2456.1,2455.9,0.4074]
[1728425358214,0.40739,2456.0,2455.8,0.40741]
[1728425358707,1.3745,2456.1,2455.6,4.0]
[1728425358914,0.40739,2456.0,2455.8,0.40741]
[1728425359111,0.40739,2456.0,2455.9,1.3758]
[1728425359316,0.40736,2456.2,2456.0,0.40737]
[1728425360713,0.40735,2456.2,2456.0,0.40737]
[1728425361403,1.3998,2456.3,2456.0,0.40737]
[1728425361607,0.40737,2456.1,2455.9,2.50339]
[1728425367423,0.40739,2456.0,2455.9,2.096]
[1728425367620,0.40739,2456.0,2455.9,0.7202]
[1728425369116,2.48841,2456.2,2455.6,1.3561]
[1728425369316,0.40743,2455.8,2455.6,2.41825]
[1728425370716,0.109,2456.7,2455.7,20.70762391]
[1728425370911,0.40729,2456.6,2456.0,3.2078]
[1728425371120,0.7129,2456.7,2456.1,2.0662]
[1728425371424,0.40729,2456.6,2456.4,0.40732]
[1728425371623,0.4073,2456.5,2456.3,0.40733]
[1728425372915,0.7129,2456.7,2456.2,4.0]
[1728425373122,0.4073,2456.5,2456.3,0.40732]
[1728425374621,0.40729,2456.6,2456.2,4.0]
[1728425374816,0.094,2457.2,2456.5,3.2078]
[1728425375016,1.3632,2457.4,2457.2,0.40718]
[1728425375321,0.40721,2457.1,2456.9,0.40723]
[1728425375513,1.3632,2457.4,2456.9,0.40723]
[1728425375716,0.4072,2457.2,2456.9,0.40723]
[1728425376617,0.4072,2457.2,2456.9,0.40724]
[1728425377322,0.4072,2457.2,2457.0,0.40722]
[1728425377518,0.4072,2457.2,2456.9,0.40723]
[1728425377817,1.3632,2457.4,2456.8,3.2078]
[1728425378017,1.3632,2457.4,2457.1,0.4072]
[1728425378219,1.3632,2457.4,2456.9,0.40723]
[1728425378220,0.4072,2457.2,2456.9,0.40723]
[1728425378419,0.40717,2457.3,2456.9,0.40723]
[1728425378624,0.4072,2457.2,2456.9,0.40723]
[1728425378928,1.3632,2457.4,2456.8,3.2078]
[1728425379122,3.8715,2457.6,2456.8,3.2078]
[1728425379322,1.3241,2457.5,2456.8,3.2078]
[1728425379524,0.40717,2457.3,2457.1,0.4072]
[1728425379728,0.40717,2457.3,2456.8,3.2078]
[1728425379924,0.40717,2457.4,2456.8,3.2078]
[1728425380229,0.40717,2457.3,2456.8,3.2078]
[1728425380425,0.40717,2457.3,2457.1,0.4072]
[1728425381935,0.40716,2457.4,2457.1,0.4072]
[1728425382425,0.40715,2457.4,2457.1,0.4072]
[1728425383321,0.40715,2457.4,2457.0,3.2078]
[1728425383523,0.40715,2457.4,2457.1,0.40719]
[1728425383817,0.40715,2457.4,2457.1,1.0191]
[1728425384018,0.40715,2457.4,2457.1,2.2432]
[1728425386026,1.3241,2457.5,2457.0,3.2078]
[1728425386231,0.40718,2457.3,2457.0,3.61501]
[1728425386429,0.40718,2457.3,2457.0,3.2078]
[1728425386631,0.40718,2457.3,2457.1,0.4072]
[1728425386925,0.40716,2457.4,2457.1,0.40719]
[1728425387126,1.73124,2457.5,2457.3,0.40717]
[1728425387332,1.73124,2457.5,2457.2,0.40717]
[1728425387632,0.40715,2457.4,2457.2,0.40718]
[1728425387832,1.3241,2457.5,2457.4,0.40715]
[1728425388234,1.3241,2457.5,2457.4,4.40715]
[1728425388738,1.3241,2457.5,2457.4,4.0]
[1728425389424,1.3241,2457.5,2457.4,4.40715]
[1728425389927,1.3241,2457.5,2457.4,4.0]
[1728425391226,1.73124,2457.5,2457.4,4.0]
[1728425391530,1.3241,2457.5,2457.2,0.6332]
[1728425391829,0.40722,2457.0,2456.7,0.50126]
[1728425392026,1.01793,2457.3,2456.6,4.0]
[1728425392230,0.40722,2457.0,2456.7,0.6162]
[1728425392428,0.40722,2457.0,2456.7,4.20346]
[1728425392742,0.40721,2457.1,2456.9,0.40723]
[1728425393122,0.4072,2457.1,2456.8,1.61654]
[1728425393528,1.6223,2457.1,2456.8,1.61654]
[1728425394432,0.40722,2457.0,2456.8,1.61654]
[1728425397941,1.6223,2457.1,2456.9,0.40723]
[1728425398632,1.6223,2457.1,2456.8,1.2093]
[1728425399036,0.40722,2457.0,2456.8,1.61655]
[1728425399834,0.40722,2457.0,2456.8,1.61654]
[1728425402235,0.40724,2456.9,2456.7,3.58726]
[1728425402438,0.5815,2456.8,2456.7,3.58726]
[1728425403037,0.5815,2456.8,2456.7,7.65766]
[1728425403343,0.98875,2456.8,2456.7,7.2504]
[1728425403937,1.2151,2457.1,2456.7,7.2504]
[1728425404129,0.40724,2456.9,2456.8,0.40724]
[1728425404340,0.40724,2456.9,2456.8,1.02854]
[1728425406046,0.40724,2456.9,2456.8,0.6213]
[1728425406243,0.40725,2456.8,2456.7,3.18]
[1728425406446,0.40725,2456.8,2456.7,1.47]
[1728425408040,0.40725,2456.8,2456.7,1.87727]
[1728425408345,0.40727,2456.7,2456.6,4.0]
[1728425408654,1.01197,2456.7,2456.6,1.47]
[1728425408947,1.01197,2456.7,2456.6,1.87729]
[1728425409543,1.01197,2456.7,2456.6,1.47]
[1728425411445,0.40729,2456.6,2456.5,8.6778]
[1728425411641,1.62979,2456.6,2456.5,8.6778]
[1728425412340,0.6054,2456.6,2456.5,9.0851]
[1728425412642,0.40726,2456.8,2456.7,0.40726]
[1728425412643,0.40725,2456.8,2456.7,0.40726]
[1728425412845,1.02434,2456.9,2456.8,0.40725]
[1728425413244,1.02434,2456.9,2456.7,1.87726]
[1728425414351,0.6006,2456.8,2456.7,1.87726]
[1728425414550,1.00785,2456.8,2456.7,1.87726]
[1728425415849,0.6006,2456.8,2456.7,1.87726]
[1728425416054,1.00785,2456.8,2456.7,1.87727]
[1728425416249,0.6006,2456.8,2456.7,1.87727]
[1728425417058,0.6006,2456.8,2456.7,1.47]
[1728425417258,1.00785,2456.8,2456.7,1.47]
[1728425417751,0.6006,2456.8,2456.7,1.87727]
[1728425421458,0.6006,2456.8,2456.7,1.47]
[1728425421765,1.00785,2456.8,2456.7,1.47]
[1728425422969,1.00785,2456.8,2456.6,1.47]
[1728425422970,0.40728,2456.7,2456.6,1.47]
[1728425423165,1.02498,2456.7,2456.6,1.47]
[1728425423767,10.6881,2456.7,2456.1,0.094]
[1728425423969,0.40738,2456.1,2456.0,1.47]
[1728425424468,2.0299,2456.5,2456.0,1.47]
[1728425424668,0.40736,2456.2,2456.0,1.47]
[1728425424869,1.2301,2456.3,2455.9,4.0]
[1728425424870,0.5599,2456.1,2455.9,4.0]
[1728425425072,0.5599,2456.1,2455.9,1.47]
[1728425425073,0.96728,2456.1,2455.9,1.47]
[1728425427672,0.5599,2456.1,2455.7,1.87743]
[1728425427978,0.40741,2455.9,2455.7,1.87743]
[1728425428169,0.40741,2455.9,2455.7,1.47]
[1728425428372,0.5999,2455.8,2455.7,1.47]
[1728425428874,1.1992,2455.8,2455.7,1.87743]
[1728425429577,1.60662,2455.8,2455.7,1.47]
[1728425430172,1.60662,2455.8,2455.7,1.87743]
[1728425430878,1.60662,2455.8,2455.7,1.47]
[1728425434371,1.60662,2455.8,2455.7,1.87743]
[1728425434976,1.60662,2455.8,2455.7,1.47]
[1728425436076,1.60662,2455.8,2455.7,1.87743]
[1728425436384,1.60662,2455.8,2455.7,1.47]
[1728425437967,1.60662,2455.8,2455.7,1.87743]
[1728425438174,1.1992,2455.8,2455.6,4.0]
[1728425438374,0.40743,2455.7,2455.6,4.0]
[1728425438673,0.98833,2455.7,2455.6,4.0]
[1728425439871,0.40745,2455.6,2455.5,3.2078]
[1728425440081,0.40745,2455.6,2455.2,0.40751]
[1728425440082,0.4075,2455.3,2455.2,0.40751]
[1728425440379,0.4075,2455.3,2455.2,4.40751]
[1728425440578,0.4075,2455.4,2455.3,0.40749]
[1728425441573,0.4075,2455.4,2455.2,4.0]
[1728425441574,0.4075,2455.3,2455.2,4.40751]
[1728425443380,0.40748,2455.5,2455.4,0.40748]
[1728425445180,2.0509,2455.7,2455.2,4.0]
[1728425445383,0.4075,2455.3,2455.2,4.40751]
[1728425445683,0.5809,2455.7,2455.2,4.0]
[1728425445876,0.40745,2455.6,2455.3,0.40749]
[1728425446074,0.40748,2455.5,2455.4,0.40748]
[1728425446280,1.1992,2455.8,2455.4,1.47]
[1728425446471,3.3018,2456.3,2455.3,3.2078]
[1728425446472,0.5671,2456.0,2455.6,1.47]
[1728425446678,0.40741,2455.9,2455.8,0.40741]
[1728425446981,0.40741,2455.9,2455.5,1.53226]
[1728425446982,0.40745,2455.6,2455.5,1.53226]
[1728425447387,0.40745,2455.6,2455.5,5.60506]
[1728425448092,1.1439,2455.8,2455.5,5.1976]
[1728425448274,1.1439,2455.8,2455.7,0.40743]
[1728425448275,0.96883,2455.8,2455.7,0.40743]
[1728425448784,0.96883,2455.8,2455.5,1.1248]
[1728425448785,0.4074,2455.9,2455.8,0.40741]
[1728425449582,1.1496,2456.0,2455.9,0.4074]
[1728425450085,1.557,2456.0,2455.8,0.40741]
[1728425450278,1.55699,2456.0,2455.9,0.4074]
[1728425450484,1.55699,2456.0,2455.7,0.5521]
[1728425450680,1.1496,2456.0,2455.7,0.5521]
[1728425450882,1.55699,2456.0,2455.7,0.5521]
[1728425451083,1.55699,2456.0,2455.9,0.4074]
[1728425451277,0.5614,2456.2,2455.8,1.47]
[1728425451580,4.173,2456.6,2456.1,1.47]
[1728425451888,0.40732,2456.4,2456.2,4.40734]
[1728425452386,1.1439,2456.5,2456.2,4.40734]
[1728425452587,0.40734,2456.3,2456.2,4.0]
[1728425453387,4.47854,2456.3,2456.2,4.0]
[1728425453684,0.40739,2456.0,2455.8,0.40741]
[1728425453891,0.5424,2455.9,2455.8,0.40741]
[1728425454087,0.5424,2455.9,2455.8,4.40741]
[1728425454294,1.1135,2455.9,2455.8,4.40741]
[1728425456087,0.5736,2456.2,2455.8,4.0]
[1728425456386,1.0918,2456.3,2456.2,0.40735]
[1728425456785,1.0918,2456.3,2456.0,0.40737]
[1728425456786,1.49915,2456.3,2456.0,0.40737]
[1728425456989,1.49915,2456.3,2456.1,0.40736]
[1728425458495,1.0918,2456.3,2456.1,0.40736]
[1728425459491,1.49914,2456.3,2456.1,0.40736]
[1728425459691,1.0918,2456.3,2456.1,0.40736]
[1728425460893,1.0918,2456.3,2455.9,6.4048]
[1728425461295,1.49914,2456.3,2456.1,0.40736]
[1728425461592,1.0918,2456.3,2456.1,0.40736]
[1728425462487,1.49914,2456.3,2456.1,0.40736]
[1728425462689,1.0918,2456.3,2456.1,0.40736]
[1728425462893,1.49914,2456.3,2456.1,0.40736]
[1728425471896,0.40736,2456.2,2456.1,0.40737]
[1728425472399,1.49915,2456.3,2456.1,0.40737]
[1728425473300,0.40735,2456.2,2456.0,0.40737]
[1728425473891,1.49915,2456.3,2456.1,0.40737]
[1728425474093,1.0918,2456.3,2456.1,0.40737]
[1728425475286,0.40735,2456.2,2456.1,0.40737]
[1728425475494,1.0918,2456.3,2455.9,6.4048]
[1728425475700,1.49914,2456.3,2456.1,0.40736]
[1728425476393,1.0918,2456.3,2455.9,6.4048]
[1728425476688,1.0918,2456.3,2456.1,0.40735]
[1728425476689,1.49914,2456.3,2456.1,0.40735]
[1728425477096,1.49914,2456.3,2455.9,6.4048]
[1728425477297,1.49914,2456.3,2456.2,0.40735]
[1728425478297,1.49914,2456.3,2456.1,0.40736]
[1728425478698,0.40732,2456.4,2455.9,7.4233]
[1728425478906,0.40732,2456.4,2456.2,0.40734]
[1728425479999,1.174,2456.5,2456.3,0.40733]
[1728425480000,0.40731,2456.5,2456.3,0.40733]
[1728425480199,0.5968,2456.4,2456.3,0.40733]
[1728425480994,1.00412,2456.4,2456.3,0.40733]
[1728425481804,0.5968,2456.4,2456.3,0.40733]
[1728425482007,1.00412,2456.4,2456.3,0.40733]
[1728425482206,1.00412,2456.4,2456.2,0.564]
[1728425482506,1.00412,2456.4,2456.3,0.40734]
[1728425483105,1.00412,2456.4,2456.2,0.97134]
[1728425483808,1.00412,2456.4,2456.3,0.40734]
[1728425486701,1.00412,2456.4,2456.2,0.97134]
[1728425487207,1.00412,2456.4,2456.3,0.40734]
[1728425489206,0.5968,2456.4,2456.3,0.40734]
[1728425489710,1.00412,2456.4,2456.3,0.40734]
[1728425491311,1.00412,2456.4,2456.2,0.97134]
[1728425492407,0.5968,2456.4,2456.0,1.05465191]
[1728425492709,0.5968,2456.4,2455.9,5.93507787]
[1728425492710,0.40736,2456.2,2456.1,1.02005532]
[1728425492909,0.40736,2456.2,2456.1,0.61268532]
[1728425493308,4.47856,2456.2,2456.1,0.61268532]
[1728425493518,1.01843,2456.1,2455.6,0.094]
[1728425493807,0.40743,2455.7,2455.5,4.40746]
[1728425494012,0.5937,2455.6,2455.5,4.40746]
[1728425494206,1.174,2455.6,2455.5,6.00175038]
[1728425494406,1.174,2455.6,2455.5,5.59429038]
[1728425494609,1.58145,2455.6,2455.5,5.59429038]
[1728425494909,1.174,2455.6,2455.5,6.00176038]
[1728425495210,1.174,2455.6,2455.5,6.00165255]
[1728425495513,1.58145,2455.6,2455.5,6.00165255]
[1728425496209,1.58145,2455.6,2455.5,5.02065861]
[1728425496409,1.58145,2455.6,2455.5,4.61318861]
[1728425497513,3.05145,2455.6,2455.5,4.0]
[1728425500114,7.12425,2455.6,2455.5,4.0]
[1728425500715,0.40747,2455.5,2455.4,3.2078]
[1728425500917,5.95027,2455.5,2455.4,3.2078]
[1728425501416,4.48027,2455.5,2455.4,3.2078]
[1728425502414,0.4075,2455.3,2455.2,4.0]
[1728425503707,0.40749,2455.4,2455.2,4.0]
[1728425503910,0.40749,2455.4,2455.2,4.40752]
[1728425504108,0.40749,2455.4,2455.2,4.0]
[1728425504309,0.4075,2455.3,2455.2,4.0]
[1728425504511,0.40749,2455.4,2455.2,4.40752]
[1728425505009,0.40749,2455.4,2455.2,4.0]
[1728425505201,3.66267,2455.6,2455.2,4.0]
[1728425505407,0.4075,2455.3,2455.2,4.0]
[1728425507306,3.66267,2455.6,2455.2,4.0]
[1728425507512,0.40749,2455.4,2455.2,4.40752]
[1728425507910,0.40749,2455.4,2455.2,4.0]
[1728425508113,0.40749,2455.4,2455.2,4.40752]
[1728425508516,4.0728,2455.3,2454.9,1.47]
[1728425508721,1.107,2455.2,2455.0,0.40754]
[1728425509218,1.107,2455.2,2455.1,0.40753]
[1728425513914,5.1798,2455.2,2455.1,0.40753]
[1728425515016,1.107,2455.2,2455.1,0.40753]
[1728425516115,1.51452,2455.2,2455.1,0.40753]
[1728425516524,1.107,2455.2,2455.1,0.40753]
[1728425517221,1.51452,2455.2,2455.1,0.40753]
[1728425519413,1.107,2455.2,2455.1,0.40753]
[1728425519618,1.51452,2455.2,2455.1,0.40753]
[1728425520525,1.107,2455.2,2455.1,0.40753]
[1728425520726,1.01858,2455.8,2455.1,1.47]
[1728425520929,1.6851,2455.7,2455.4,0.40748]
[1728425521229,1.6851,2455.7,2455.5,4.0]
[1728425521230,0.40746,2455.6,2455.5,4.0]
[1728425521920,0.40746,2455.6,2455.4,0.40748]
[1728425522525,0.40746,2455.6,2455.4,4.40748]
[1728425522930,1.6851,2455.7,2455.4,4.40748]
[1728425523132,0.40747,2455.5,2455.4,4.40748]
[1728425523932,0.40747,2455.5,2455.4,4.0]
[1728425524128,0.40747,2455.5,2455.3,0.94649]
[1728425524830,0.40747,2455.5,2455.3,4.94649]
[1728425525527,0.40746,2455.6,2455.4,0.40747]
[1728425526624,0.40747,2455.5,2455.4,0.40747]
[1728425528722,0.40747,2455.5,2455.3,0.94649]
[1728425530726,1.6851,2455.7,2455.3,0.539]
[1728425530930,0.40747,2455.5,2455.4,0.40748]
[1728425531331,0.40747,2455.5,2455.3,0.94649]
[1728425532525,0.40747,2455.5,2455.4,0.40748]
[1728425532828,0.40747,2455.5,2455.3,0.94649]
[1728425533427,1.6851,2455.7,2455.3,0.539]
[1728425533629,0.40742,2455.8,2455.4,1.47]
[1728425533925,0.40742,2455.8,2455.6,1.47]
[1728425534130,0.40742,2455.8,2455.6,1.87745]
[1728425534330,0.40742,2455.8,2455.6,6.45375]
[1728425536231,0.40741,2455.9,2455.7,0.40743]
[1728425536632,0.5419,2455.8,2455.6,6.0463]
[1728425536836,0.5419,2455.8,2455.7,0.40743]
[1728425540626,1.53447,2456.1,2455.6,2.0463]
[1728425540827,2.10408,2456.1,2455.9,0.4074]
[1728425541632,1.6967,2456.1,2455.8,0.5704]
[1728425541828,1.53108,2456.1,2455.9,0.4074]
[1728425542035,1.53108,2456.1,2456.0,0.5603]
[1728425543036,6.6649,2456.1,2455.5,8.35645191]
[1728425543231,4.86558372,2456.0,2455.5,4.0]
[1728425543438,0.40748,2455.5,2455.3,0.6543]
[1728425543641,0.5795,2455.4,2455.3,0.9678]
[1728425543831,0.5795,2455.4,2455.3,5.65425514]
[1728425544034,0.5795,2455.4,2455.3,8.68645514]